fUST/lending_fUST_20240810
["ID","MTS","AMOUNT","RATE_DAILY","PERIOD"]
[334595046,1723293040137,-3247.40576402,0.0001979,2]
[334595047,1723293040146,-3247.40576402,0.00019815,2]
[334595048,1723293040155,-205.937812,0.00019815,2]
[334595049,1723293040165,-205.937812,0.00019815,2]
[334595050,1723293040174,-194.392481,0.00019815,2]
[334595051,1723293040183,-194.392481,0.00019815,2]
[334595052,1723293040193,-151.0,0.00019815,2]
[334595053,1723293040204,-151.0,0.00019815,2]
[334595054,1723293040214,-865.121341,0.00019815,2]
[334595055,1723293040223,-865.121341,0.00019815,2]
[334595056,1723293040232,-3247.40576402,0.0001984,2]
[334595057,1723293040242,-243.109662,0.00019864,2]
[334595058,1723293040252,-680.801386,0.00019864,2]
[334595059,1723293040262,-680.801386,0.00019864,2]
[334595060,1723293040271,-320.897692,0.00019864,2]
[334595061,1723293040281,-320.897692,0.00019864,2]
[334595062,1723293040291,-151.0,0.00019864,2]
[334595063,1723293040301,-151.0,0.00019864,2]
[334595065,1723293040310,-723.569815,0.00019864,2]
[334595066,1723293040320,-723.569815,0.00019864,2]
[334595067,1723293040330,-742.339709,0.00019864,2]
[334595068,1723293040340,-742.339709,0.00019864,2]
[334595069,1723293040350,-151.0,0.00019864,2]
[334595070,1723293040360,-151.0,0.00019864,2]
[334595072,1723293040370,-3247.40576402,0.00019864,2]
[334595074,1723293040379,-7776.22218588,0.00019879,2]
[334595075,1723293040388,-205.937812,0.00019879,2]
[334595076,1723293040398,-205.937812,0.00019879,2]
[334595077,1723293040407,-194.392481,0.00019879,2]
[334595078,1723293040416,-194.392481,0.00019879,2]
[334595079,1723293040426,-151.0,0.00019879,2]
[334595080,1723293040435,-151.0,0.00019879,2]
[334595081,1723293040444,-865.121341,0.00019879,2]
[334595082,1723293040455,-865.121341,0.00019879,2]
[334595083,1723293040466,-723.569815,0.00019879,2]
[334595084,1723293040476,-723.569815,0.00019879,2]
[334595086,1723293040486,-723.569815,0.00019879,2]
[334595087,1723293040496,-723.569815,0.00019879,2]
[334595088,1723293040506,-742.339709,0.00019879,2]
[334595089,1723293040515,-742.339709,0.00019879,2]
[334595090,1723293040524,-742.339709,0.00019879,2]
[334595091,1723293040534,-742.339709,0.00019879,2]
[334595092,1723293040544,-151.0,0.00019879,2]
[334595093,1723293040554,-151.0,0.00019879,2]
[334595094,1723293040564,-151.0,0.00019879,2]
[334595095,1723293040573,-151.0,0.00019879,2]
[334595096,1723293040582,-63136.5746066,0.00019879,2]
[334595097,1723293040591,-2000.0,0.0001988,2]
[334595098,1723293040601,-3247.40576402,0.00019889,2]
[334595099,1723293040611,-2802.88261296,0.0001989,2]
[334595100,1723293040621,-431.346872,0.0001989,2]
[334595101,1723293040631,-431.346872,0.0001989,2]
[334595102,1723293040640,-469.553891,0.0001989,2]
[334595103,1723293040649,-469.553891,0.0001989,2]
[334595104,1723293040659,-2000.0,0.000199,2]
[334595105,1723293040669,-36181.10060289,0.00019968,11]
[334595106,1723293040678,-680.801386,0.00019968,2]
[334595107,1723293040688,-680.801386,0.00019968,2]
[334595108,1723293040697,-205.937812,0.00019968,2]
[334595109,1723293040708,-205.937812,0.00019968,2]
[334595110,1723293040718,-320.897692,0.00019968,2]
[334595111,1723293040727,-320.897692,0.00019968,2]
[334595112,1723293040737,-151.0,0.00019968,2]
[334595113,1723293040748,-194.392481,0.00019968,2]
[334595114,1723293040758,-194.392481,0.00019968,2]
[334595115,1723293040770,-151.0,0.00019968,2]
[334595116,1723293040779,-151.0,0.00019968,2]
[334595117,1723293040789,-151.0,0.00019968,2]
[334595118,1723293040800,-865.121341,0.00019968,2]
[334595119,1723293040809,-865.121341,0.00019968,2]
[334595120,1723293040819,-723.569815,0.00019968,2]
[334595121,1723293040829,-723.569815,0.00019968,2]
[334595122,1723293040840,-742.339709,0.00019968,2]
[334595123,1723293040851,-742.339709,0.00019968,2]
[334595124,1723293040862,-151.0,0.00019968,2]
[334595125,1723293040872,-282.960393,0.00019968,2]
[334595126,1723293040882,-63136.5746066,0.00019969,2]
[334595127,1723293040894,-151.0,0.00019969,2]
[334595128,1723293040905,-151.0,0.00019969,2]
[334595129,1723293040915,-264.279785,0.00019969,2]
[334595130,1723293040925,-151.0,0.00019969,2]
[334595131,1723293040937,-151.0,0.00019969,2]
[334595132,1723293040947,-151.0,0.00019969,2]
[334595133,1723293040957,-151.0,0.00019969,2]
[334595134,1723293040966,-151.0,0.00019969,2]
[334595135,1723293040976,-1171.570492,0.00019969,2]
[334595136,1723293040986,-431.346872,0.00019969,2]
[334595137,1723293040995,-1171.570492,0.00019969,2]
[334595138,1723293041008,-162.908206,0.00019969,2]
[334595139,1723293041018,-431.346872,0.00019969,2]
[334595140,1723293041028,-162.908206,0.00019969,2]
[334595141,1723293041036,-469.553891,0.00019969,2]
[334595142,1723293041047,-469.553891,0.00019969,2]
[334595143,1723293041188,-680.801386,0.00019969,2]
[334595144,1723293041198,-680.801386,0.00019969,2]
[334595145,1723293041208,-205.937812,0.00019969,2]
[334595146,1723293041219,-205.937812,0.00019969,2]
[334595147,1723293041229,-320.897692,0.00019969,2]
[334595148,1723293041240,-320.897692,0.00019969,2]
[334595149,1723293041251,-202.876898,0.00019969,2]
[334595150,1723293041260,-194.392481,0.00019969,2]
[334595151,1723293041271,-194.392481,0.00019969,2]
[334595152,1723293041281,-151.0,0.00019969,2]
[334595153,1723293041290,-151.0,0.00019969,2]
[334595154,1723293041300,-151.0,0.00019969,2]
[334595155,1723293041309,-865.121341,0.00019969,2]
[334595156,1723293041318,-865.121341,0.00019969,2]
[334595157,1723293041328,-723.569815,0.00019969,2]
[334595158,1723293041337,-723.569815,0.00019969,2]
[334595159,1723293041346,-742.339709,0.00019969,2]
[334595160,1723293041355,-742.339709,0.00019969,2]
[334595161,1723293041365,-151.0,0.00019969,2]
[334595162,1723293041374,-63136.5746066,0.0001997,2]
[334595163,1723293041383,-153.818964,0.0001997,2]
[334595164,1723293041392,-204.617322,0.0001997,2]
[334595165,1723293041403,-264.279785,0.0001997,2]
[334595166,1723293041412,-151.0,0.0001997,2]
[334595167,1723293041422,-151.0,0.0001997,2]
[334595168,1723293041431,-273.806273,0.0001997,2]
[334595169,1723293041440,-151.0,0.0001997,2]
[334595170,1723293041452,-151.0,0.0001997,2]
[334595171,1723293041464,-1171.570492,0.0001997,2]
[334595172,1723293041474,-431.346872,0.0001997,2]
[334595173,1723293041484,-1171.570492,0.0001997,2]
[334595174,1723293041493,-162.908206,0.0001997,2]
[334595175,1723293041503,-431.346872,0.0001997,2]
[334595176,1723293041512,-162.908206,0.0001997,2]
[334595177,1723293041521,-469.553891,0.0001997,2]
[334595178,1723293041531,-469.553891,0.0001997,2]
[334595179,1723293041543,-680.801386,0.0001997,2]
[334595180,1723293041552,-680.801386,0.0001997,2]
[334595181,1723293041562,-205.937812,0.0001997,2]
[334595182,1723293041571,-205.937812,0.0001997,2]
[334595183,1723293041580,-320.897692,0.0001997,2]
[334595184,1723293041590,-320.897692,0.0001997,2]
[334595185,1723293041599,-194.392481,0.0001997,2]
[334595186,1723293041609,-194.392481,0.0001997,2]
[334595187,1723293041618,-151.0,0.0001997,2]
[334595188,1723293041627,-151.0,0.0001997,2]
[334595189,1723293041638,-151.0,0.0001997,2]
[334595190,1723293041647,-865.121341,0.0001997,2]
[334595191,1723293041657,-865.121341,0.0001997,2]
[334595192,1723293041667,-723.569815,0.0001997,2]
[334595193,1723293041676,-723.56981324,0.0001997,2]
[334595194,1723293041686,-742.339709,0.0001997,2]
[334595195,1723293041695,-742.339705,0.0001997,2]
[334595196,1723293041707,-151.0,0.0001997,2]
[334595197,1723293041716,-200.0,0.00019973,2]
[334595198,1723293041725,-200.0,0.00019973,2]
[334595199,1723293041734,-440.20386681,0.00019978,2]
[334595200,1723293041744,-162.09699175,0.00019978,2]
[334595201,1723293041755,-500.0,0.00019978,2]
[334595202,1723293041767,-381.99841256,0.00019978,2]
[334595203,1723293041777,-500.0,0.00019978,2]
[334595204,1723293041786,-500.0,0.00019978,2]
[334595205,1723293041796,-500.0,0.00019978,2]
[334595206,1723293041805,-500.0,0.00019978,2]
[334595208,1723293041816,-500.0,0.00019978,2]
[334595210,1723293041827,-500.0,0.00019978,2]
[334595211,1723293041837,-500.0,0.00019978,2]
[334595213,1723293041848,-500.0,0.00019978,2]
[334595215,1723293041858,-500.0,0.00019978,2]
[334595217,1723293041869,-500.0,0.00019978,2]
[334595219,1723293041879,-500.0,0.00019978,2]
[334595220,1723293041889,-500.0,0.00019978,2]
[334595221,1723293041899,-500.0,0.00019978,2]
[334595222,1723293041910,-500.0,0.00019978,2]
[334595223,1723293041921,-500.0,0.00019978,2]
[334595224,1723293041932,-500.0,0.00019978,2]
[334595225,1723293041942,-500.0,0.00019978,2]
[334595226,1723293041957,-427.13853821,0.00019978,2]
[334595227,1723293041967,-151.0,0.00019979,2]
[334595228,1723293041977,-237.693936,0.00019979,2]
[334595229,1723293041987,-237.693936,0.00019979,2]
[334595230,1723293041996,-151.0,0.00019979,2]
[334595231,1723293042006,-151.0,0.00019979,2]
[334595232,1723293042016,-151.561584,0.00019979,2]
[334595233,1723293042025,-151.0,0.00019979,2]
[334595234,1723293042035,-264.279785,0.00019979,2]
[334595235,1723293042047,-264.279785,0.00019979,2]
[334595236,1723293042056,-151.0,0.00019979,2]
[334595237,1723293042065,-151.0,0.00019979,2]
[334595238,1723293042075,-151.0,0.00019979,2]
[334595239,1723293042085,-153.381633,0.00019979,2]
[334595240,1723293042095,-1171.570492,0.00019979,2]
[334595241,1723293042104,-1171.570492,0.00019979,2]
[334595242,1723293042114,-431.346872,0.00019979,2]
[334595243,1723293042123,-431.346872,0.00019979,2]
[334595244,1723293042133,-1171.570492,0.00019979,2]
[334595245,1723293042142,-1171.570492,0.00019979,2]
[334595246,1723293042153,-162.908206,0.00019979,2]
[334595247,1723293042163,-431.346872,0.00019979,2]
[334595248,1723293042172,-162.908206,0.00019979,2]
[334595249,1723293042182,-431.346872,0.00019979,2]
[334595250,1723293042192,-162.908206,0.00019979,2]
[334595251,1723293042203,-162.908206,0.00019979,2]
[334595252,1723293042212,-469.553891,0.00019979,2]
[334595253,1723293042221,-469.553891,0.00019979,2]
[334595254,1723293042229,-469.553891,0.00019979,2]
[334595255,1723293042239,-469.553891,0.00019979,2]
[334595256,1723293042248,-680.801386,0.00019979,2]
[334595257,1723293042258,-680.801386,0.00019979,2]
[334595258,1723293042267,-680.801386,0.00019979,2]
[334595259,1723293042276,-680.801386,0.00019979,2]
[334595260,1723293042286,-205.937812,0.00019979,2]
[334595261,1723293042295,-205.937812,0.00019979,2]
[334595262,1723293042304,-205.937812,0.00019979,2]
[334595263,1723293042314,-205.937812,0.00019979,2]
[334595264,1723293042323,-320.897692,0.00019979,2]
[334595265,1723293042332,-320.897692,0.00019979,2]
[334595266,1723293042342,-320.897692,0.00019979,2]
[334595267,1723293042351,-320.897692,0.00019979,2]
[334595268,1723293042360,-194.392481,0.00019979,2]
[334595269,1723293042370,-194.392481,0.00019979,2]
[334595270,1723293042379,-194.392481,0.00019979,2]
[334595271,1723293042389,-194.392481,0.00019979,2]
[334595272,1723293042398,-151.0,0.00019979,2]
[334595273,1723293042408,-151.0,0.00019979,2]
[334595274,1723293042419,-151.0,0.00019979,2]
[334595275,1723293042428,-151.0,0.00019979,2]
[334595276,1723293042438,-301.7956,0.00019979,2]
[334595277,1723293042449,-865.121341,0.00019979,2]
[334595278,1723293042466,-865.121341,0.00019979,2]
[334595279,1723293042478,-865.121341,0.00019979,2]
[334595280,1723293042487,-865.121341,0.00019979,2]
[334595281,1723293042496,-63136.5746066,0.00019979,2]
[334595282,1723293042507,-151.0,0.0001998,2]
[334595283,1723293042517,-237.693936,0.0001998,2]
[334595284,1723293042526,-237.693936,0.0001998,2]
[334595285,1723293042536,-237.693936,0.0001998,2]
[334595286,1723293042547,-237.693936,0.0001998,2]
[334595287,1723293042556,-151.0,0.0001998,2]
[334595288,1723293042565,-151.0,0.0001998,2]
[334595289,1723293042575,-151.0,0.0001998,2]
[334595290,1723293042584,-151.0,0.0001998,2]
[334595291,1723293042594,-151.0,0.0001998,2]
[334595292,1723293042603,-151.0,0.0001998,2]
[334595293,1723293042613,-151.0,0.0001998,2]
[334595294,1723293042622,-151.0,0.0001998,2]
[334595295,1723293042631,-264.279785,0.0001998,2]
[334595296,1723293042641,-264.279785,0.0001998,2]
[334595297,1723293042651,-264.279785,0.0001998,2]
[334595298,1723293042660,-151.0,0.0001998,2]
[334595299,1723293042670,-151.0,0.0001998,2]
[334595300,1723293042680,-182.522005,0.0001998,2]
[334595301,1723293042689,-1171.570492,0.0001998,2]
[334595302,1723293042700,-1171.570492,0.0001998,2]
[334595303,1723293042709,-1171.570492,0.0001998,2]
[334595304,1723293042722,-431.346872,0.0001998,2]
[334595305,1723293042732,-431.346872,0.0001998,2]
[334595306,1723293042741,-431.346872,0.0001998,2]
[334595307,1723293042751,-1171.570492,0.0001998,2]
[334595308,1723293042760,-431.346872,0.0001998,2]
[334595309,1723293042769,-1171.570492,0.0001998,2]
[334595310,1723293042778,-1171.570492,0.0001998,2]
[334595311,1723293042788,-431.346872,0.0001998,2]
[334595312,1723293042798,-162.908206,0.0001998,2]
[334595313,1723293042807,-162.908206,0.0001998,2]
[334595314,1723293042815,-431.346872,0.0001998,2]
[334595315,1723293042825,-162.908206,0.0001998,2]
[334595316,1723293042834,-431.346872,0.0001998,2]
[334595317,1723293042843,-431.346872,0.0001998,2]
[334595318,1723293042853,-162.908206,0.0001998,2]
[334595319,1723293042862,-162.908206,0.0001998,2]
[334595320,1723293042874,-162.908206,0.0001998,2]
[334595321,1723293042883,-469.553891,0.0001998,2]
[334595322,1723293042893,-469.553891,0.0001998,2]
[334595323,1723293042921,-469.553891,0.0001998,2]
[334595324,1723293042932,-469.553891,0.0001998,2]
[334595325,1723293042943,-469.553891,0.0001998,2]
[334595326,1723293042955,-469.553891,0.0001998,2]
[334595327,1723293042964,-469.553891,0.0001998,2]
[334595328,1723293042974,-469.553891,0.0001998,2]
[334595329,1723293042984,-680.801386,0.0001998,2]
[334595330,1723293042994,-680.801386,0.0001998,2]
[334595331,1723293043004,-680.801386,0.0001998,2]
[334595332,1723293043013,-680.801386,0.0001998,2]
[334595333,1723293043023,-680.801386,0.0001998,2]
[334595334,1723293043032,-680.801381,0.0001998,2]
[334595335,1723293043042,-205.937812,0.0001998,2]
[334595336,1723293043051,-205.937809,0.0001998,2]
[334595337,1723293043060,-320.897692,0.0001998,2]
[334595338,1723293043070,-320.897692,0.0001998,2]
[334595339,1723293043079,-320.897692,0.0001998,2]
[334595340,1723293043089,-320.897692,0.0001998,2]
[334595341,1723293043097,-320.897692,0.0001998,2]
[334595342,1723293043107,-320.897701,0.0001998,2]
[334595343,1723293043116,-194.392481,0.0001998,2]
[334595344,1723293043125,-194.392476,0.0001998,2]
[334595345,1723293043135,-151.0,0.0001998,2]
[334595346,1723293043144,-865.121341,0.0001998,2]
[334595347,1723293043154,-865.121339,0.0001998,2]
[334595348,1723293043163,-150.01,0.00019989,2]
[334595349,1723293043174,-2993.33781285,0.00019989,2]
[334595350,1723293043184,-264.279785,0.00019989,2]
[334595351,1723293043195,-1171.570492,0.00019989,2]
[334595352,1723293043207,-1171.570492,0.00019989,2]
[334595353,1723293043216,-431.346872,0.00019989,2]
[334595354,1723293043226,-1171.570492,0.00019989,2]
[334595356,1723293043236,-1171.570492,0.00019989,2]
[334595358,1723293043246,-162.908206,0.00019989,2]
[334595359,1723293043257,-431.346875,0.00019989,2]
[334595360,1723293043267,-162.908206,0.00019989,2]
[334595361,1723293043277,-162.908206,0.00019989,2]
[334595362,1723293043288,-162.908206,0.00019989,2]
[334595363,1723293043300,-469.553891,0.00019989,2]
[334595364,1723293043311,-469.553883,0.00019989,2]
[334595365,1723293043323,-24797.13597918,0.0001999,2]
[334595371,1723293043515,-52924.38849044,0.0001999,2]
[334595372,1723293043524,-237.693936,0.0001999,2]
[334595373,1723293043533,-237.693936,0.0001999,2]
[334595374,1723293043543,-237.693936,0.0001999,2]
[334595375,1723293043554,-237.693936,0.0001999,2]
[334595376,1723293043563,-237.693936,0.0001999,2]
[334595377,1723293043572,-237.693936,0.0001999,2]
[334595378,1723293043582,-237.693936,0.0001999,2]
[334595379,1723293043591,-237.693936,0.0001999,2]
[334595380,1723293043601,-237.693936,0.0001999,2]
[334595381,1723293043610,-237.693936,0.0001999,2]
[334595382,1723293043619,-237.693936,0.0001999,2]
[334595383,1723293043629,-237.693936,0.0001999,2]
[334595384,1723293043639,-237.693936,0.0001999,2]
[334595385,1723293043648,-237.693944,0.0001999,2]
[334595386,1723293043659,-264.279785,0.0001999,2]
[334595387,1723293043668,-264.279784,0.0001999,2]
[334595388,1723293043679,-1171.570492,0.0001999,2]
[334595389,1723293043688,-1171.570501,0.0001999,2]
[334595390,1723293043699,-162.908206,0.0001999,2]
[334595395,1723293043839,-162.908215,0.0001999,2]
[334595396,1723293043849,-227.43235787,0.00019999,2]
[334595397,1723293043859,-2602.22864022,0.0002,2]
[334595398,1723293043870,-156.4788062,0.0002,2]
[334595399,1723293043879,-1000.0,0.0002,20]
[334595400,1723293043889,-155.11267602,0.0002,2]
[334595401,1723293043899,-1444.82566449,0.0002,2]
[334595402,1723293043908,-294.33166663,0.0002,2]
[334595403,1723293043917,-24271.73575449,0.0002,2]
[334595404,1723293043927,-266.71909344,0.0002,2]
[334595405,1723293043937,-154.77557542,0.0002,2]
[334595406,1723293043947,-154.83259253,0.0002,4]
[334595407,1723293043956,-163.67414706,0.0002,2]
[334595408,1723293043965,-40854.92824377,0.0002,2]
[334595409,1723293043975,-427.3467713,0.0002,2]
[334595410,1723293043985,-150.112233,0.0002,2]
[334595411,1723293043995,-1554.55416322,0.0002,2]
[334595412,1723293044004,-435.0,0.0002,2]
[334595413,1723293044014,-159.04658669,0.0002,2]
[334595414,1723293044023,-151.4401548,0.0002,2]
[334595415,1723293044033,-174.42986602,0.0002,2]
[334595416,1723293044042,-715.340867,0.00020031,2]
[334595417,1723293044051,-853.838524,0.00020031,2]
[334595418,1723293044061,-1211.050003,0.00020031,2]
[334595419,1723293044070,-1072.337964,0.00020031,2]
[334595420,1723293044080,-164.789858,0.00020031,2]
[334595421,1723293044089,-1087.75647,0.00020031,2]
[334595422,1723293044099,-761.632943,0.00020031,2]
[334595423,1723293044108,-164.789857,0.00020031,2]
[334595424,1723293044118,-233.777836,0.00020031,2]
[334595425,1723293044127,-401.421138,0.00020031,2]
[334595426,1723293044136,-252.801271,0.00020031,2]
[334595427,1723293044145,-301.246585,0.00020031,2]
[334595428,1723293044155,-164.789858,0.00020031,2]
[334595429,1723293044164,-600.0,0.00020251,2]
[334595430,1723293044174,-278.766,0.00020276,2]
[334595431,1723293044183,-507.0,0.00020276,2]
[334595432,1723293044192,-1412.0,0.00020276,2]
[334595433,1723293044203,-253.322,0.00020277,2]
[334595434,1723293044213,-150.0,0.00020277,2]
[334595435,1723293044223,-715.340867,0.00020282,2]
[334595436,1723293044232,-853.838524,0.00020282,2]
[334595437,1723293044242,-1211.050003,0.00020282,2]
[334595438,1723293044251,-1072.337964,0.00020282,2]
[334595439,1723293044261,-1087.75647,0.00020282,2]
[334595440,1723293044271,-761.632943,0.00020282,2]
[334595441,1723293044282,-233.777836,0.00020282,2]
[334595442,1723293044291,-401.421138,0.00020282,2]
[334595443,1723293044300,-252.801271,0.00020282,2]
[334595444,1723293044310,-301.246585,0.00020282,2]
[334595445,1723293044319,-151.0,0.00020343,2]
[334595446,1723293044328,-160.0,0.00020345,3]
[334595447,1723293044338,-146811.10599262,0.00020377,2]
[334595448,1723293044348,-150.112233,0.000204,5]
[334595449,1723293044358,-600.0,0.00020462,2]
[334595450,1723293044368,-151.0,0.00020468,2]
[334595451,1723293044377,-1241.600338,0.000205,2]
[334595452,1723293044387,-715.340867,0.00020532,2]
[334595453,1723293044396,-853.838524,0.00020532,2]
[334595454,1723293044405,-1211.050003,0.00020532,2]
[334595455,1723293044415,-1072.337964,0.00020532,2]
[334595456,1723293044424,-1087.75647,0.00020532,2]
[334595457,1723293044434,-761.632943,0.00020532,2]
[334595458,1723293044443,-233.777836,0.00020532,2]
[334595459,1723293044454,-401.421138,0.00020532,2]
[334595460,1723293044464,-252.801271,0.00020532,2]
[334595461,1723293044475,-301.246585,0.00020532,2]
[334595462,1723293044486,-620.11096168,0.00020546,2]
[334595463,1723293044495,-500.0,0.00020547,4]
[334595464,1723293044504,-500.0,0.00020547,4]
[334595466,1723293044514,-500.0,0.00020547,4]
[334595468,1723293044523,-500.0,0.00020547,4]
[334595469,1723293044532,-527.10261265,0.00020547,4]
[334595470,1723293044542,-151.0,0.00020594,2]
[334595471,1723293044552,-160.0,0.00020656,4]
[334595472,1723293044562,-600.0,0.00020673,2]
[334595473,1723293044571,-13046.95649166,0.00020696,2]
[334595474,1723293044580,-151.0,0.00020719,2]
[334595475,1723293044589,-151.0,0.00020719,2]
[334595476,1723293044598,-715.340867,0.00020782,2]
[334595477,1723293044607,-853.838524,0.00020782,2]
[334595478,1723293044617,-1211.050003,0.00020782,2]
[334595479,1723293044626,-1072.337964,0.00020782,2]
[334595480,1723293044635,-1087.75647,0.00020782,2]
[334595481,1723293044644,-761.632943,0.00020782,2]
[334595482,1723293044653,-233.777836,0.00020782,2]
[334595483,1723293044663,-401.421138,0.00020782,2]
[334595484,1723293044673,-252.801271,0.00020782,2]
[334595485,1723293044682,-301.246585,0.00020782,2]
[334595486,1723293044691,-1000.0,0.000208,6]
[334595487,1723293044701,-300.0,0.000208,9]
[334595488,1723293044711,-1000.0,0.000208,7]
[334595489,1723293044720,-323.75256006,0.0002082,3]
[334595490,1723293044731,-500.0,0.00020821,2]
[334595491,1723293044741,-499.15623592,0.00020821,3]
[334595492,1723293044750,-502.85179291,0.00020821,3]
[334595493,1723293044759,-307.00971664,0.00020821,3]
[334595494,1723293044769,-500.0,0.00020821,3]
[334595495,1723293044778,-340.34802559,0.00020821,3]
[334595496,1723293044787,-548.54323977,0.00020821,3]
[334595497,1723293044797,-500.0,0.00020821,3]
[334595498,1723293044806,-505.59162293,0.00020821,3]
[334595499,1723293044816,-532.04310518,0.00020821,3]
[334595500,1723293044826,-527.758689,0.00020821,3]
[334595501,1723293044835,-500.0,0.00020821,3]
[334595502,1723293044844,-406.81594378,0.00020821,3]
[334595503,1723293044853,-500.0,0.00020821,3]
[334595504,1723293044863,-500.0,0.00020821,3]
[334595505,1723293044872,-500.0,0.00020821,3]
[334595506,1723293044882,-500.0,0.00020821,3]
[334595507,1723293044892,-500.0,0.00020821,3]
[334595508,1723293044903,-219.30487628,0.00020821,3]
[334595509,1723293044913,-505.25367923,0.00020821,3]
[334595510,1723293044922,-500.0,0.00020821,3]
[334595511,1723293044931,-565.29734231,0.00020821,3]
[334595512,1723293044941,-196.75710832,0.00020821,3]
[334595513,1723293044952,-500.0,0.00020821,3]
[334595514,1723293044961,-503.75870773,0.00020821,3]
[334595515,1723293044975,-500.0,0.00020821,3]
[334595516,1723293044991,-500.0,0.00020821,3]
[334595517,1723293045006,-500.0,0.00020821,3]
[334595518,1723293045018,-500.0,0.00020821,3]
[334595519,1723293045033,-500.0,0.00020821,3]
[334595520,1723293045047,-516.41732021,0.00020821,3]
[334595521,1723293045063,-500.0,0.00020821,3]
[334595522,1723293045078,-500.0,0.00020821,3]
[334595523,1723293045093,-500.0,0.00020821,3]
[334595524,1723293045106,-505.29704672,0.00020821,3]
[334595525,1723293045120,-500.0,0.00020821,3]
[334595526,1723293045135,-500.0,0.00020821,3]
[334595527,1723293045151,-687.21,0.00020821,3]
[334595528,1723293045166,-500.0,0.00020821,3]
[334595529,1723293045177,-515.35381011,0.00020821,3]
[334595530,1723293045190,-509.15636668,0.00020821,3]
[334595531,1723293045204,-500.0,0.00020821,3]
[334595532,1723293045219,-506.74375151,0.00020821,3]
[334595533,1723293045232,-684.91,0.00020821,3]
[334595534,1723293045247,-500.0,0.00020821,3]
[334595535,1723293045261,-355.22870848,0.00020821,3]
[334595536,1723293045276,-500.0,0.00020821,3]
[334595537,1723293045287,-503.22265799,0.00020821,3]
[334595538,1723293045298,-505.11462333,0.00020821,3]
[334595539,1723293045311,-509.49445872,0.00020821,3]
[334595540,1723293045326,-500.0,0.00020821,3]
[334595541,1723293045338,-500.0,0.00020821,3]
[334595542,1723293045352,-500.0,0.00020821,3]
[334595543,1723293045366,-500.0,0.00020821,3]
[334595544,1723293045380,-500.0,0.00020821,3]
[334595545,1723293045391,-201.40103009,0.00020821,3]
[334595546,1723293045403,-506.19776692,0.00020821,3]
[334595547,1723293045417,-500.0,0.00020821,3]
[334595548,1723293045430,-503.64010005,0.00020821,3]
[334595549,1723293045444,-500.0,0.00020821,3]
[334595550,1723293045456,-500.0,0.00020821,3]
[334595551,1723293045470,-500.0,0.00020821,3]
[334595552,1723293045483,-500.0,0.00020821,3]
[334595553,1723293045495,-589.89506067,0.00020821,3]
[334595554,1723293045508,-500.0,0.00020821,3]
[334595555,1723293045522,-186.76007375,0.00020821,3]
[334595556,1723293045534,-500.0,0.00020821,3]
[334595557,1723293045546,-500.0,0.00020821,3]
[334595558,1723293045559,-200.0,0.00020821,3]
[334595559,1723293045571,-967.94,0.00020821,3]
[334595560,1723293045583,-500.0,0.00020821,3]
[334595561,1723293045595,-500.0,0.00020821,3]
[334595562,1723293045607,-500.0,0.00020821,3]
[334595563,1723293045619,-432.16777112,0.00020821,3]
[334595564,1723293045633,-500.0,0.00020821,3]
[334595565,1723293045646,-500.0,0.00020821,3]
[334595566,1723293045659,-1020.31,0.00020821,3]
[334595567,1723293045672,-503.14562305,0.00020821,3]
[334595568,1723293045683,-500.0,0.00020821,3]